[Event "Titled Tuesday Blitz March 07 Early 2023"]
[White "Clawitter, Craig"]
[Black "Pissama Ntsaou, Martial"]
[WhiteFideId "2023105"]
[BlackFideId "17400864"]
[WhiteElo "2284"]
[BlackElo "2071"]
[Result "1-0"]
[Round "08"]
[TimeControl "180+2"]
[Date "2023.03.07"]
[WhiteClock "0:00:07"]
[BlackClock "0:00:16"]

1. e4 {[%clk 0:02:58]}  c6 {[%clk 0:02:59]} 2. d4 {[%clk 0:02:56]}  d5 {[%clk 0:03:00]} 3. e5 {[%clk 0:02:57]}  Bf5 {[%clk 0:02:59]} 4. Nf3 {[%clk 0:02:56]}  e6 {[%clk 0:02:59]} 5. Be2 {[%clk 0:02:55]}  Nd7 {[%clk 0:02:59]} 6. O-O {[%clk 0:02:49]}  Ne7 {[%clk 0:02:58]} 7. Nbd2 {[%clk 0:02:48]}  Bg6 {[%clk 0:02:58]} 8. Nb3 {[%clk 0:02:47]}  Nf5 {[%clk 0:02:57]} 9. c4 {[%clk 0:02:43]}  dxc4 {[%clk 0:02:48]} 10. Bxc4 {[%clk 0:02:44]}  Nb6 {[%clk 0:02:48]} 11. Be2 {[%clk 0:02:36]}  Nd5 {[%clk 0:02:47]} 12. Bg5 {[%clk 0:02:12]}  Be7 {[%clk 0:02:45]} 13. Bxe7 {[%clk 0:02:09]}  Qxe7 {[%clk 0:02:44]} 14. Rc1 {[%clk 0:02:01]}  O-O {[%clk 0:02:43]} 15. Nc5 {[%clk 0:02:00]}  Rfd8 {[%clk 0:02:41]} 16. Qb3 {[%clk 0:01:58]}  Nb6 {[%clk 0:02:39]} 17. Rfd1 {[%clk 0:01:53]}  h6 {[%clk 0:02:30]} 18. a4 {[%clk 0:01:51]}  Rab8 {[%clk 0:02:26]} 19. a5 {[%clk 0:01:48]}  Nd5 {[%clk 0:02:26]} 20. a6 {[%clk 0:01:40]}  b6 {[%clk 0:02:23]} 21. Ne4 {[%clk 0:01:29]}  Rbc8 {[%clk 0:02:00]} 22. g4 {[%clk 0:01:22]}  Nh4 {[%clk 0:02:00]} 23. Nd6 {[%clk 0:01:14]}  Rc7 {[%clk 0:01:45]} 24. Bc4 {[%clk 0:00:39]}  Nxf3+ {[%clk 0:00:37]} 25. Qxf3 {[%clk 0:00:40]}  Kh8 {[%clk 0:00:20]} 26. Bd3 {[%clk 0:00:28]}  Bxd3 {[%clk 0:00:19]} 27. Rxd3 {[%clk 0:00:29]}  c5 {[%clk 0:00:19]} 28. dxc5 {[%clk 0:00:26]}  bxc5 {[%clk 0:00:19]} 29. Rcd1 {[%clk 0:00:14]}  Qg5 {[%clk 0:00:19]} 30. Nxf7+ {[%clk 0:00:10]}  Rxf7 {[%clk 0:00:19]} 31. Qxf7 {[%clk 0:00:11]}  Qxg4+ {[%clk 0:00:20]} 32. Kh1 {[%clk 0:00:08]}  Nf4 {[%clk 0:00:20]} 33. Rg1 {[%clk 0:00:07]}  Qf5 {[%clk 0:00:16]} 34. Qxg7# {[%clk 0:00:07]} 1-0


[Site "https://www.chess.com"]

[Event "Titled Tuesday Blitz March 07 Early 2023"]
[White "Smith, Garrett L"]
[Black "Castillo Pena, Patricia Evarista"]
[WhiteFideId "2024829"]
[BlackFideId "6412106"]
[WhiteElo "2270"]
[BlackElo "1919"]
[Result "1-0"]
[Round "08"]
[TimeControl "180+2"]
[Date "2023.03.07"]
[WhiteClock "0:00:53"]
[BlackClock "0:00:33"]

1. e4 {[%clk 0:03:00]}  c5 {[%clk 0:02:59]} 2. a3 {[%clk 0:03:00]}  d5 {[%clk 0:02:50]} 3. exd5 {[%clk 0:03:00]}  Qxd5 {[%clk 0:02:51]} 4. Nc3 {[%clk 0:03:00]}  Qe5+ {[%clk 0:02:48]} 5. Be2 {[%clk 0:02:57]}  Nf6 {[%clk 0:02:42]} 6. d3 {[%clk 0:02:52]}  g6 {[%clk 0:02:39]} 7. Nf3 {[%clk 0:02:51]}  Qc7 {[%clk 0:02:39]} 8. Bg5 {[%clk 0:02:46]}  Bg7 {[%clk 0:02:39]} 9. Qd2 {[%clk 0:02:44]}  O-O {[%clk 0:02:38]} 10. O-O-O {[%clk 0:02:27]}  a6 {[%clk 0:02:37]} 11. h4 {[%clk 0:02:09]}  b5 {[%clk 0:02:35]} 12. h5 {[%clk 0:01:59]}  Nc6 {[%clk 0:02:22]} 13. Bh6 {[%clk 0:01:55]}  Ng4 {[%clk 0:01:48]} 14. Bxg7 {[%clk 0:01:48]}  Kxg7 {[%clk 0:01:49]} 15. hxg6 {[%clk 0:01:47]}  fxg6 {[%clk 0:01:48]} 16. Nd5 {[%clk 0:01:22]}  Qd6 {[%clk 0:01:37]} 17. Qc3+ {[%clk 0:01:16]}  e5 {[%clk 0:01:32]} 18. Nb6 {[%clk 0:01:15]}  Ra7 {[%clk 0:01:20]} 19. Nxc8 {[%clk 0:01:11]}  Rxc8 {[%clk 0:01:20]} 20. Ng5 {[%clk 0:01:10]}  h6 {[%clk 0:01:16]} 21. Bxg4 {[%clk 0:01:08]}  Rf8 {[%clk 0:01:02]} 22. Ne4 {[%clk 0:01:07]}  Qd4 {[%clk 0:00:49]} 23. Qxc5 {[%clk 0:01:03]}  Qxc5 {[%clk 0:00:47]} 24. Nxc5 {[%clk 0:01:04]}  Rxf2 {[%clk 0:00:43]} 25. Rdf1 {[%clk 0:00:59]}  Rxg2 {[%clk 0:00:36]} 26. Bf3 {[%clk 0:00:54]}  Rg3 {[%clk 0:00:33]} 27. Bxc6 {[%clk 0:00:53]} 1-0


[Site "https://www.chess.com"]

[Event "Titled Tuesday Blitz March 07 Early 2023"]
[White "Liu, Yi"]
[Black "Comas Fabrego, Lluis"]
[WhiteFideId "3210588"]
[BlackFideId "2200325"]
[WhiteElo "2264"]
[BlackElo "2523"]
[Result "1/2-1/2"]
[Round "08"]
[TimeControl "180+2"]
[Date "2023.03.07"]
[WhiteClock "0:00:11"]
[BlackClock "0:00:18"]

1. e4 {[%clk 0:03:00]}  c5 {[%clk 0:02:59]} 2. Nf3 {[%clk 0:03:00]}  d6 {[%clk 0:02:59]} 3. d4 {[%clk 0:03:00]}  cxd4 {[%clk 0:02:59]} 4. Nxd4 {[%clk 0:03:01]}  Nf6 {[%clk 0:02:58]} 5. Nc3 {[%clk 0:03:00]}  g6 {[%clk 0:02:58]} 6. Be3 {[%clk 0:02:59]}  Bg7 {[%clk 0:02:58]} 7. f3 {[%clk 0:02:57]}  O-O {[%clk 0:02:58]} 8. Qd2 {[%clk 0:02:57]}  Nc6 {[%clk 0:02:58]} 9. O-O-O {[%clk 0:02:57]}  d5 {[%clk 0:02:57]} 10. Nxc6 {[%clk 0:02:53]}  bxc6 {[%clk 0:02:57]} 11. exd5 {[%clk 0:02:53]}  Nxd5 {[%clk 0:02:56]} 12. Nxd5 {[%clk 0:02:52]}  cxd5 {[%clk 0:02:56]} 13. Qxd5 {[%clk 0:02:51]}  Qc7 {[%clk 0:02:50]} 14. Qc5 {[%clk 0:02:47]}  Qb7 {[%clk 0:02:50]} 15. Bd4 {[%clk 0:02:41]}  Bf5 {[%clk 0:02:46]} 16. Qa3 {[%clk 0:01:54]}  Rac8 {[%clk 0:02:16]} 17. c3 {[%clk 0:01:22]}  Bh6+ {[%clk 0:02:04]} 18. Rd2 {[%clk 0:01:08]}  Bxd2+ {[%clk 0:00:55]} 19. Kxd2 {[%clk 0:01:09]}  Qd7 {[%clk 0:00:47]} 20. Ke1 {[%clk 0:00:48]}  Qe6+ {[%clk 0:00:39]} 21. Kf2 {[%clk 0:00:43]}  Qd6 {[%clk 0:00:34]} 22. Qxd6 {[%clk 0:00:38]}  exd6 {[%clk 0:00:34]} 23. Bxa7 {[%clk 0:00:33]}  Ra8 {[%clk 0:00:33]} 24. Bd4 {[%clk 0:00:33]}  Rxa2 {[%clk 0:00:31]} 25. c4 {[%clk 0:00:19]}  Rb8 {[%clk 0:00:21]} 26. Be2 {[%clk 0:00:16]}  Rbxb2 {[%clk 0:00:19]} 27. Bxb2 {[%clk 0:00:15]}  Rxb2 {[%clk 0:00:20]} 28. Ke3 {[%clk 0:00:13]}  Be6 {[%clk 0:00:18]} 29. Rc1 {[%clk 0:00:12]}  Kg7 {[%clk 0:00:18]} 30. c5 {[%clk 0:00:12]}  dxc5 {[%clk 0:00:18]} 31. Rxc5 {[%clk 0:00:12]}  Rb3+ {[%clk 0:00:18]} 32. Kf2 {[%clk 0:00:11]}  Rb2 {[%clk 0:00:18]} 33. Ke3 {[%clk 0:00:11]}  Rb3+ {[%clk 0:00:18]} 34. Kf2 {[%clk 0:00:11]}  Rb2 {[%clk 0:00:18]} 35. Ke3 {[%clk 0:00:11]} 1/2-1/2


[Site "https://www.chess.com"]

[Event "Titled Tuesday Blitz March 07 Early 2023"]
[White "Chabris, Christopher"]
[Black "Mushini Ajay"]
[WhiteFideId "2005263"]
[BlackFideId "35066188"]
[WhiteElo "2202"]
[BlackElo "2145"]
[Result "0-1"]
[Round "08"]
[TimeControl "180+2"]
[Date "2023.03.07"]
[WhiteClock "0:00:10"]
[BlackClock "0:00:59"]

1. e4 {[%clk 0:02:58]}  c5 {[%clk 0:02:59]} 2. Nf3 {[%clk 0:02:58]}  e6 {[%clk 0:02:58]} 3. d4 {[%clk 0:02:58]}  cxd4 {[%clk 0:02:58]} 4. Nxd4 {[%clk 0:02:59]}  Nf6 {[%clk 0:02:58]} 5. Nc3 {[%clk 0:02:58]}  d6 {[%clk 0:02:58]} 6. g4 {[%clk 0:02:58]}  Be7 {[%clk 0:02:58]} 7. g5 {[%clk 0:02:57]}  Nfd7 {[%clk 0:02:58]} 8. Rg1 {[%clk 0:02:57]}  Nc6 {[%clk 0:02:58]} 9. h4 {[%clk 0:02:57]}  a6 {[%clk 0:02:56]} 10. Be3 {[%clk 0:02:56]}  Qc7 {[%clk 0:02:56]} 11. h5 {[%clk 0:02:49]}  Nde5 {[%clk 0:02:56]} 12. f4 {[%clk 0:02:40]}  Nd7 {[%clk 0:02:20]} 13. g6 {[%clk 0:02:37]}  hxg6 {[%clk 0:02:11]} 14. hxg6 {[%clk 0:02:36]}  Bh4+ {[%clk 0:02:07]} 15. Ke2 {[%clk 0:02:23]}  Nxd4+ {[%clk 0:02:04]} 16. Qxd4 {[%clk 0:02:13]}  Bf6 {[%clk 0:02:03]} 17. gxf7+ {[%clk 0:02:11]}  Kxf7 {[%clk 0:02:01]} 18. Qd3 {[%clk 0:01:21]}  Nc5 {[%clk 0:01:55]} 19. Qd2 {[%clk 0:01:00]}  b5 {[%clk 0:01:37]} 20. f5 {[%clk 0:00:47]}  b4 {[%clk 0:01:34]} 21. fxe6+ {[%clk 0:00:43]}  Bxe6 {[%clk 0:01:34]} 22. Nd5 {[%clk 0:00:42]}  Qc6 {[%clk 0:01:15]} 23. Bg2 {[%clk 0:00:34]}  Bg4+ {[%clk 0:01:02]} 24. Bf3 {[%clk 0:00:19]}  Bxf3+ {[%clk 0:01:00]} 25. Kxf3 {[%clk 0:00:19]}  Rh3+ {[%clk 0:00:59]} 26. Ke2 {[%clk 0:00:15]}  Rh2+ {[%clk 0:00:59]} 27. Kf3 {[%clk 0:00:10]}  Rxd2 {[%clk 0:00:59]} 0-1


[Site "https://www.chess.com"]

[Event "Titled Tuesday Blitz March 07 Early 2023"]
[White "Burdalev, Kirill"]
[Black "McLaren, Brian"]
[WhiteFideId "14121913"]
[BlackFideId "2604612"]
[WhiteElo "2236"]
[BlackElo "2132"]
[Result "1-0"]
[Round "08"]
[TimeControl "180+2"]
[Date "2023.03.07"]
[WhiteClock "0:00:11"]
[BlackClock "0:00:42"]

1. d4 {[%clk 0:03:00]}  d5 {[%clk 0:02:58]} 2. c4 {[%clk 0:03:00]}  e6 {[%clk 0:02:58]} 3. g3 {[%clk 0:02:57]}  c6 {[%clk 0:02:55]} 4. Bg2 {[%clk 0:02:51]}  Bd6 {[%clk 0:02:55]} 5. Nf3 {[%clk 0:02:49]}  f5 {[%clk 0:02:54]} 6. O-O {[%clk 0:02:43]}  Nd7 {[%clk 0:02:50]} 7. Nc3 {[%clk 0:02:39]}  Ngf6 {[%clk 0:02:48]} 8. Qc2 {[%clk 0:02:38]}  dxc4 {[%clk 0:02:42]} 9. a4 {[%clk 0:02:34]}  O-O {[%clk 0:02:40]} 10. Nd2 {[%clk 0:02:25]}  Nd5 {[%clk 0:02:35]} 11. Nxc4 {[%clk 0:02:22]}  Bc7 {[%clk 0:02:31]} 12. e4 {[%clk 0:02:20]}  N5f6 {[%clk 0:02:20]} 13. exf5 {[%clk 0:02:06]}  exf5 {[%clk 0:02:20]} 14. d5 {[%clk 0:01:39]}  cxd5 {[%clk 0:02:12]} 15. Nxd5 {[%clk 0:01:37]}  Nxd5 {[%clk 0:02:12]} 16. Bxd5+ {[%clk 0:01:36]}  Kh8 {[%clk 0:02:12]} 17. b3 {[%clk 0:01:16]}  Nb6 {[%clk 0:02:08]} 18. Nxb6 {[%clk 0:01:11]}  Bxb6 {[%clk 0:02:06]} 19. Bc4 {[%clk 0:01:08]}  Bd7 {[%clk 0:01:59]} 20. Ba3 {[%clk 0:01:06]}  Re8 {[%clk 0:01:56]} 21. Rad1 {[%clk 0:01:05]}  Qc7 {[%clk 0:01:50]} 22. Bb2 {[%clk 0:01:02]}  f4 {[%clk 0:01:44]} 23. Bxg7+ {[%clk 0:00:43]}  Kxg7 {[%clk 0:01:40]} 24. Qc3+ {[%clk 0:00:41]}  Kg6 {[%clk 0:01:37]} 25. Bd3+ {[%clk 0:00:26]}  Bf5 {[%clk 0:01:36]} 26. Bxf5+ {[%clk 0:00:22]}  Kxf5 {[%clk 0:01:35]} 27. Rd5+ {[%clk 0:00:22]}  Kg6 {[%clk 0:01:33]} 28. Qd3+ {[%clk 0:00:21]}  Kg7 {[%clk 0:01:23]} 29. Rd7+ {[%clk 0:00:21]}  Re7 {[%clk 0:01:23]} 30. Rxc7 {[%clk 0:00:20]}  Bxc7 {[%clk 0:01:22]} 31. Qd4+ {[%clk 0:00:19]}  Kg8 {[%clk 0:01:18]} 32. Qd5+ {[%clk 0:00:19]}  Kg7 {[%clk 0:01:17]} 33. Qxb7 {[%clk 0:00:19]}  Rae8 {[%clk 0:01:16]} 34. Kg2 {[%clk 0:00:18]}  fxg3 {[%clk 0:01:12]} 35. hxg3 {[%clk 0:00:19]}  Bxg3 {[%clk 0:01:09]} 36. Qd5 {[%clk 0:00:18]}  Bf4 {[%clk 0:01:04]} 37. Rg1 {[%clk 0:00:18]}  Re5 {[%clk 0:01:00]} 38. Kf3+ {[%clk 0:00:16]}  Kf6 {[%clk 0:00:58]} 39. Qd4 {[%clk 0:00:15]}  Bg5 {[%clk 0:00:55]} 40. Qxa7 {[%clk 0:00:14]}  h6 {[%clk 0:00:54]} 41. a5 {[%clk 0:00:13]}  Rf5+ {[%clk 0:00:52]} 42. Kg2 {[%clk 0:00:12]}  Re2 {[%clk 0:00:52]} 43. Qd4+ {[%clk 0:00:13]}  Kg6 {[%clk 0:00:50]} 44. Rf1 {[%clk 0:00:12]}  Be3 {[%clk 0:00:49]} 45. Qd6+ {[%clk 0:00:11]}  Kg5 {[%clk 0:00:47]} 46. Qd8+ {[%clk 0:00:11]}  Kg6 {[%clk 0:00:47]} 47. Qd3 {[%clk 0:00:09]}  Rxf2+ {[%clk 0:00:43]} 48. Rxf2 {[%clk 0:00:09]}  Bxf2 {[%clk 0:00:43]} 49. Qxf5+ {[%clk 0:00:08]}  Kxf5 {[%clk 0:00:43]} 50. Kxf2 {[%clk 0:00:09]}  Ke5 {[%clk 0:00:42]} 51. b4 {[%clk 0:00:09]}  Kd5 {[%clk 0:00:42]} 52. Kg3 {[%clk 0:00:09]}  Kc6 {[%clk 0:00:42]} 53. Kh4 {[%clk 0:00:10]}  Kb5 {[%clk 0:00:42]} 54. Kh5 {[%clk 0:00:11]} 1-0


[Site "https://www.chess.com"]

[Event "Titled Tuesday Blitz March 07 Early 2023"]
[White "Johnson, Ben"]
[Black "rikchessmx"]
[WhiteFideId "2010917"]
[WhiteElo "2143"]
[BlackElo "2223"]
[Result "1-0"]
[Round "08"]
[TimeControl "180+2"]
[Date "2023.03.07"]
[WhiteClock "0:00:33"]
[BlackClock "0:00:51"]

1. Nf3 {[%clk 0:03:00]}  g6 {[%clk 0:02:58]} 2. e4 {[%clk 0:02:57]}  Bg7 {[%clk 0:02:58]} 3. d4 {[%clk 0:02:58]}  d6 {[%clk 0:02:58]} 4. Bc4 {[%clk 0:02:58]}  Nd7 {[%clk 0:02:59]} 5. Qe2 {[%clk 0:02:53]}  c6 {[%clk 0:02:58]} 6. Nc3 {[%clk 0:02:46]}  e5 {[%clk 0:02:52]} 7. Be3 {[%clk 0:02:28]}  Ngf6 {[%clk 0:02:35]} 8. a4 {[%clk 0:01:58]}  O-O {[%clk 0:02:15]} 9. O-O {[%clk 0:01:50]}  Ng4 {[%clk 0:02:14]} 10. Bg5 {[%clk 0:01:47]}  Qb6 {[%clk 0:02:07]} 11. dxe5 {[%clk 0:01:40]}  Ndxe5 {[%clk 0:02:02]} 12. Nxe5 {[%clk 0:01:38]}  Nxe5 {[%clk 0:02:01]} 13. Bb3 {[%clk 0:01:35]}  Re8 {[%clk 0:01:56]} 14. a5 {[%clk 0:01:32]}  Qc5 {[%clk 0:01:53]} 15. Be3 {[%clk 0:01:26]}  Qb4 {[%clk 0:01:41]} 16. Ra4 {[%clk 0:01:24]}  Qxa4 {[%clk 0:01:40]} 17. Bxa4 {[%clk 0:01:22]}  b5 {[%clk 0:01:37]} 18. axb6 {[%clk 0:01:18]}  axb6 {[%clk 0:01:37]} 19. f4 {[%clk 0:01:15]}  Ba6 {[%clk 0:01:37]} 20. Qd1 {[%clk 0:01:05]}  Nc4 {[%clk 0:01:36]} 21. Bc1 {[%clk 0:01:02]}  Bxc3 {[%clk 0:01:20]} 22. bxc3 {[%clk 0:01:01]}  b5 {[%clk 0:01:20]} 23. Bb3 {[%clk 0:01:00]}  Rad8 {[%clk 0:01:19]} 24. Bxc4 {[%clk 0:00:55]}  bxc4 {[%clk 0:01:20]} 25. Re1 {[%clk 0:00:53]}  Bb5 {[%clk 0:01:15]} 26. Ba3 {[%clk 0:00:50]}  d5 {[%clk 0:01:14]} 27. exd5 {[%clk 0:00:50]}  Rxe1+ {[%clk 0:01:09]} 28. Qxe1 {[%clk 0:00:51]}  cxd5 {[%clk 0:01:07]} 29. Bc5 {[%clk 0:00:49]}  Re8 {[%clk 0:01:05]} 30. Qh4 {[%clk 0:00:44]}  Ba4 {[%clk 0:00:55]} 31. Bd4 {[%clk 0:00:42]}  Re6 {[%clk 0:00:51]} 32. Qd8+ {[%clk 0:00:38]}  Re8 {[%clk 0:00:51]} 33. Qf6 {[%clk 0:00:33]} 1-0


[Site "https://www.chess.com"]

[Event "Titled Tuesday Blitz March 07 Early 2023"]
[White "Necula, Iulian"]
[Black "Martinez, Shawn"]
[WhiteFideId "1232380"]
[BlackFideId "2039770"]
[WhiteElo "1790"]
[BlackElo "2174"]
[Result "0-1"]
[Round "08"]
[TimeControl "180+2"]
[Date "2023.03.07"]
[WhiteClock "0:00:02"]
[BlackClock "0:00:48"]

1. d4 {[%clk 0:03:00]}  Nf6 {[%clk 0:02:53]} 2. Nc3 {[%clk 0:03:01]}  g6 {[%clk 0:02:53]} 3. Bf4 {[%clk 0:03:01]}  Bg7 {[%clk 0:02:53]} 4. e4 {[%clk 0:03:01]}  d6 {[%clk 0:02:54]} 5. h4 {[%clk 0:03:00]}  h5 {[%clk 0:02:52]} 6. Qd2 {[%clk 0:02:59]}  c6 {[%clk 0:02:48]} 7. Nh3 {[%clk 0:02:59]}  b5 {[%clk 0:02:48]} 8. O-O-O {[%clk 0:02:57]}  b4 {[%clk 0:02:43]} 9. Nb1 {[%clk 0:02:00]}  Nxe4 {[%clk 0:02:41]} 10. Qxb4 {[%clk 0:02:00]}  Bxh3 {[%clk 0:02:33]} 11. Qb7 {[%clk 0:01:56]}  Bd7 {[%clk 0:02:19]} 12. Qxa8 {[%clk 0:01:52]}  Qb6 {[%clk 0:02:19]} 13. c3 {[%clk 0:01:37]}  Nxf2 {[%clk 0:02:10]} 14. Bc4 {[%clk 0:01:34]}  O-O {[%clk 0:02:09]} 15. Rhe1 {[%clk 0:01:19]}  Nxd1 {[%clk 0:02:02]} 16. Kxd1 {[%clk 0:01:16]}  Bg4+ {[%clk 0:01:56]} 17. Kc2 {[%clk 0:01:13]}  Nd7 {[%clk 0:01:54]} 18. Qxf8+ {[%clk 0:01:10]}  Bxf8 {[%clk 0:01:51]} 19. Nd2 {[%clk 0:01:06]}  Bf5+ {[%clk 0:01:49]} 20. Kc1 {[%clk 0:01:05]}  e5 {[%clk 0:01:48]} 21. Be3 {[%clk 0:01:02]}  Qa5 {[%clk 0:01:43]} 22. Bb3 {[%clk 0:00:48]}  Nf6 {[%clk 0:01:35]} 23. dxe5 {[%clk 0:00:47]}  dxe5 {[%clk 0:01:34]} 24. Bg5 {[%clk 0:00:45]}  Ng4 {[%clk 0:01:30]} 25. Nc4 {[%clk 0:00:43]}  Qc5 {[%clk 0:01:25]} 26. Ne3 {[%clk 0:00:34]}  Bh6 {[%clk 0:01:18]} 27. Nxf5 {[%clk 0:00:28]}  Bxg5+ {[%clk 0:01:16]} 28. hxg5 {[%clk 0:00:28]}  gxf5 {[%clk 0:01:16]} 29. g6 {[%clk 0:00:19]}  Ne3 {[%clk 0:01:11]} 30. gxf7+ {[%clk 0:00:18]}  Kf8 {[%clk 0:01:11]} 31. Re2 {[%clk 0:00:15]}  Nd5 {[%clk 0:01:10]} 32. Rxe5 {[%clk 0:00:13]}  Qg1+ {[%clk 0:01:07]} 33. Bd1 {[%clk 0:00:12]}  Kxf7 {[%clk 0:01:04]} 34. Rxf5+ {[%clk 0:00:09]}  Ke6 {[%clk 0:01:03]} 35. Rxh5 {[%clk 0:00:09]}  Ne3 {[%clk 0:00:57]} 36. Rh6+ {[%clk 0:00:08]}  Ke7 {[%clk 0:00:57]} 37. Rh7+ {[%clk 0:00:08]}  Kd6 {[%clk 0:00:56]} 38. Rh6+ {[%clk 0:00:08]}  Kc7 {[%clk 0:00:56]} 39. Rh7+ {[%clk 0:00:08]}  Kb6 {[%clk 0:00:52]} 40. Rd7 {[%clk 0:00:06]}  Nd5 {[%clk 0:00:50]} 41. c4 {[%clk 0:00:04]}  Qe3+ {[%clk 0:00:48]} 42. Kb1 {[%clk 0:00:03]}  Qe4+ {[%clk 0:00:48]} 43. Bc2 {[%clk 0:00:02]}  Qe1+ {[%clk 0:00:48]} 0-1


[Site "https://www.chess.com"]

[Event "Titled Tuesday Blitz March 07 Early 2023"]
[White "Kukula, Pawel"]
[Black "Degrande, Marigje"]
[WhiteFideId "1115081"]
[BlackFideId "262757"]
[WhiteElo "2012"]
[BlackElo "2186"]
[Result "1-0"]
[Round "08"]
[TimeControl "180+2"]
[Date "2023.03.07"]
[WhiteClock "0:00:46"]
[BlackClock "0:00:01"]

1. d4 {[%clk 0:02:36]}  Nf6 {[%clk 0:02:58]} 2. Nf3 {[%clk 0:02:34]}  c5 {[%clk 0:02:57]} 3. Nc3 {[%clk 0:02:33]}  cxd4 {[%clk 0:02:57]} 4. Qxd4 {[%clk 0:02:34]}  Nc6 {[%clk 0:02:57]} 5. Qh4 {[%clk 0:02:34]}  g6 {[%clk 0:02:55]} 6. e4 {[%clk 0:02:32]}  d6 {[%clk 0:02:53]} 7. Bc4 {[%clk 0:02:32]}  Bg7 {[%clk 0:02:49]} 8. Bh6 {[%clk 0:02:31]}  O-O {[%clk 0:02:49]} 9. O-O-O {[%clk 0:02:17]}  Qa5 {[%clk 0:02:35]} 10. Ng5 {[%clk 0:02:14]}  b5 {[%clk 0:02:06]} 11. Bxg7 {[%clk 0:02:02]}  Kxg7 {[%clk 0:02:01]} 12. Bd5 {[%clk 0:01:59]}  h6 {[%clk 0:01:53]} 13. Bxc6 {[%clk 0:01:57]}  hxg5 {[%clk 0:01:50]} 14. Qxg5 {[%clk 0:01:58]}  Rb8 {[%clk 0:01:35]} 15. e5 {[%clk 0:01:47]}  dxe5 {[%clk 0:01:30]} 16. Qxe5 {[%clk 0:01:48]}  Be6 {[%clk 0:01:21]} 17. g4 {[%clk 0:01:39]}  Bxg4 {[%clk 0:01:12]} 18. Rd4 {[%clk 0:01:32]}  Be6 {[%clk 0:01:08]} 19. a3 {[%clk 0:01:29]}  Qb6 {[%clk 0:01:00]} 20. Bd5 {[%clk 0:01:19]}  Rfd8 {[%clk 0:00:35]} 21. Rhd1 {[%clk 0:01:14]}  a5 {[%clk 0:00:32]} 22. Bxe6 {[%clk 0:01:11]}  Rxd4 {[%clk 0:00:30]} 23. Rxd4 {[%clk 0:01:12]}  Qxe6 {[%clk 0:00:27]} 24. Qxe6 {[%clk 0:01:12]}  fxe6 {[%clk 0:00:28]} 25. b4 {[%clk 0:01:08]}  axb4 {[%clk 0:00:25]} 26. Rxb4 {[%clk 0:01:07]}  Rh8 {[%clk 0:00:14]} 27. h4 {[%clk 0:01:06]}  Nd5 {[%clk 0:00:12]} 28. Nxd5 {[%clk 0:01:03]}  exd5 {[%clk 0:00:12]} 29. Rxb5 {[%clk 0:00:57]}  Rxh4 {[%clk 0:00:12]} 30. Rxd5 {[%clk 0:00:57]}  Rf4 {[%clk 0:00:12]} 31. Rd2 {[%clk 0:00:57]}  Kf6 {[%clk 0:00:10]} 32. Kb2 {[%clk 0:00:56]}  g5 {[%clk 0:00:09]} 33. Kb3 {[%clk 0:00:57]}  g4 {[%clk 0:00:10]} 34. c4 {[%clk 0:00:57]}  e5 {[%clk 0:00:06]} 35. c5 {[%clk 0:00:55]}  Rf3+ {[%clk 0:00:03]} 36. Kb4 {[%clk 0:00:55]}  Ke6 {[%clk 0:00:02]} 37. c6 {[%clk 0:00:55]}  Rf7 {[%clk 0:00:02]} 38. Kc5 {[%clk 0:00:52]}  Ra7 {[%clk 0:00:02]} 39. Rd3 {[%clk 0:00:51]}  e4 {[%clk 0:00:01]} 40. Rb3 {[%clk 0:00:49]}  Ra5+ {[%clk 0:00:01]} 41. Kb6 {[%clk 0:00:49]}  Rd5 {[%clk 0:00:01]} 42. c7 {[%clk 0:00:49]}  Rd6+ {[%clk 0:00:01]} 43. Kb7 {[%clk 0:00:49]}  Rd7 {[%clk 0:00:01]} 44. a4 {[%clk 0:00:46]} 1-0


[Site "https://www.chess.com"]

[Event "Titled Tuesday Blitz March 07 Early 2023"]
[White "Bluebaum, Matthias"]
[Black "Harsha Bharathakoti"]
[WhiteFideId "24651516"]
[BlackFideId "5078776"]
[WhiteElo "2638"]
[BlackElo "2481"]
[Result "1-0"]
[Round "09"]
[TimeControl "180+2"]
[Date "2023.03.07"]
[WhiteClock "0:00:46"]
[BlackClock "0:00:02"]

1. d4 {[%clk 0:03:00]}  Nf6 {[%clk 0:02:59]} 2. c4 {[%clk 0:03:01]}  e6 {[%clk 0:02:59]} 3. Nc3 {[%clk 0:03:02]}  Bb4 {[%clk 0:03:00]} 4. e3 {[%clk 0:03:02]}  O-O {[%clk 0:02:58]} 5. Bd2 {[%clk 0:03:03]}  c5 {[%clk 0:02:55]} 6. a3 {[%clk 0:03:03]}  Bxc3 {[%clk 0:02:54]} 7. Bxc3 {[%clk 0:03:04]}  Ne4 {[%clk 0:02:55]} 8. Ne2 {[%clk 0:03:04]}  b6 {[%clk 0:02:54]} 9. d5 {[%clk 0:03:05]}  Ba6 {[%clk 0:02:46]} 10. Qd3 {[%clk 0:03:05]}  exd5 {[%clk 0:02:36]} 11. Qxd5 {[%clk 0:03:06]}  Qe7 {[%clk 0:02:32]} 12. b3 {[%clk 0:03:06]}  Nxc3 {[%clk 0:02:17]} 13. Nxc3 {[%clk 0:03:07]}  Nc6 {[%clk 0:02:18]} 14. Be2 {[%clk 0:03:02]}  Qe6 {[%clk 0:02:18]} 15. Rd1 {[%clk 0:02:53]}  Rad8 {[%clk 0:02:13]} 16. O-O {[%clk 0:02:36]}  Na5 {[%clk 0:02:02]} 17. b4 {[%clk 0:02:16]}  cxb4 {[%clk 0:00:30]} 18. axb4 {[%clk 0:02:16]}  Nxc4 {[%clk 0:00:26]} 19. b5 {[%clk 0:02:11]}  Qxd5 {[%clk 0:00:19]} 20. Rxd5 {[%clk 0:01:59]}  Bb7 {[%clk 0:00:18]} 21. Bxc4 {[%clk 0:01:58]}  Bxd5 {[%clk 0:00:13]} 22. Nxd5 {[%clk 0:01:59]}  Kh8 {[%clk 0:00:09]} 23. Ra1 {[%clk 0:01:34]}  Rc8 {[%clk 0:00:10]} 24. Bf1 {[%clk 0:01:35]}  Rc5 {[%clk 0:00:09]} 25. Nf4 {[%clk 0:01:34]}  Rc7 {[%clk 0:00:08]} 26. g3 {[%clk 0:01:30]}  Rfc8 {[%clk 0:00:07]} 27. Kg2 {[%clk 0:01:27]}  g6 {[%clk 0:00:06]} 28. Nd5 {[%clk 0:01:17]}  Rc5 {[%clk 0:00:05]} 29. Nf6 {[%clk 0:01:18]}  R8c7 {[%clk 0:00:04]} 30. Ne8 {[%clk 0:01:12]}  Rc8 {[%clk 0:00:04]} 31. Nd6 {[%clk 0:01:12]}  R8c7 {[%clk 0:00:04]} 32. Nxf7+ {[%clk 0:01:11]}  Kg7 {[%clk 0:00:05]} 33. Nd6 {[%clk 0:01:11]}  Kf8 {[%clk 0:00:05]} 34. Ne4 {[%clk 0:01:08]}  Rc1 {[%clk 0:00:05]} 35. Ra4 {[%clk 0:01:06]}  d5 {[%clk 0:00:03]} 36. Ng5 {[%clk 0:01:01]}  Ke7 {[%clk 0:00:03]} 37. Nxh7 {[%clk 0:00:59]}  Kd6 {[%clk 0:00:03]} 38. Ng5 {[%clk 0:00:58]}  Rb1 {[%clk 0:00:04]} 39. h4 {[%clk 0:00:49]}  Rb2 {[%clk 0:00:04]} 40. Nh3 {[%clk 0:00:48]}  Rf7 {[%clk 0:00:02]} 41. Rg4 {[%clk 0:00:46]}  Kc5 {[%clk 0:00:02]} 42. Rxg6 {[%clk 0:00:45]}  Rb1 {[%clk 0:00:01]} 43. h5 {[%clk 0:00:45]}  Rh7 {[%clk 0:00:01]} 44. h6 {[%clk 0:00:45]}  d4 {[%clk 0:00:01]} 45. exd4+ {[%clk 0:00:45]}  Kxd4 {[%clk 0:00:02]} 46. Ng5 {[%clk 0:00:45]}  Rh8 {[%clk 0:00:02]} 47. Nf7 {[%clk 0:00:46]} 1-0


[Site "https://www.chess.com"]